bitfinex/quotes_BTCUSD_20250623
["timestamp","ask_amount","ask_price","bid_price","bid_amount"]
[1750694923388,0.03213838,101450.0,101440.0,0.58697184]
[1750694923606,0.03213838,101450.0,101440.0,0.59682949]
[1750694923813,0.03213838,101450.0,101440.0,0.58697184]
[1750694924023,0.03213838,101450.0,101440.0,0.59682871]
[1750694926461,0.03213838,101450.0,101440.0,0.17429939]
[1750694926668,0.03213838,101450.0,101440.0,0.57695371]
[1750694927137,0.03213838,101450.0,101440.0,0.55723831]
[1750694927334,0.03213838,101450.0,101440.0,0.56709615]
[1750694927558,0.03213838,101450.0,101440.0,0.17429939]
[1750694927794,0.03213838,101450.0,101440.0,0.28949939]
[1750694928251,0.03213838,101450.0,101440.0,0.56081821]
[1750694928473,0.03213838,101450.0,101440.0,0.56081831]
[1750694928744,0.03213838,101450.0,101440.0,0.35379939]
[1750694928954,0.03213838,101450.0,101440.0,0.56081831]
[1750694929169,0.03213838,101450.0,101440.0,0.35379939]
[1750694929391,0.03213838,101450.0,101440.0,0.57071586]
[1750694929604,0.03213838,101450.0,101440.0,0.57071596]
[1750694930056,0.03213838,101450.0,101440.0,0.57071605]
[1750694930286,0.03213838,101450.0,101440.0,0.5805738]
[1750694930488,0.03213838,101450.0,101440.0,0.59043145]
[1750694930704,0.03213838,101450.0,101440.0,0.57071605]
[1750694930926,0.03213838,101450.0,101440.0,0.5805736]
[1750694931136,0.03213838,101450.0,101440.0,0.56085821]
[1750694931343,0.03213838,101450.0,101440.0,0.5805738]
[1750694932041,0.03213838,101450.0,101440.0,0.60028881]
[1750694933815,0.03213838,101450.0,101440.0,0.61482966]
[1750694937496,0.03213838,101450.0,101440.0,0.65100881]
[1750694937736,0.16724581,101480.0,101450.0,0.22669506]
[1750694938004,0.0626,101480.0,101460.0,0.51603571]
[1750694938253,0.0626,101480.0,101460.0,0.52589161]
[1750694938473,0.0626,101480.0,101460.0,0.31891549]
[1750694938699,0.0626,101480.0,101460.0,0.51603695]
[1750694938944,0.0626,101480.0,101460.0,0.52589285]
[1750694939161,0.0312,101480.0,101460.0,0.54560378]
[1750694939369,0.5626,101490.0,101460.0,0.56794846]
[1750694939580,0.56306177,101490.0,101460.0,0.5876592]
[1750694939793,0.56306177,101490.0,101460.0,0.55809285]
[1750694939996,0.0312,101480.0,101460.0,0.56794865]
[1750694940184,0.0312,101480.0,101460.0,0.58765978]
[1750694940446,0.40306177,101490.0,101460.0,0.57780436]
[1750694940658,0.40506177,101490.0,101460.0,0.56804826]
[1750694940878,0.40306177,101490.0,101460.0,0.53848085]
[1750694941100,0.0323,101480.0,101470.0,0.17612]
[1750694941311,0.0634,101480.0,101470.0,0.17612]
[1750694942828,0.9034,101480.0,101470.0,0.17612]
[1750694943058,0.4034,101480.0,101470.0,0.17612]
[1750694943472,0.4034,101480.0,101470.0,0.17712]
[1750694943693,0.4034,101480.0,101470.0,0.001]
[1750694944612,0.42674208,101480.0,101470.0,0.001]
[1750694944829,0.44498169,101480.0,101470.0,0.001]
[1750694945052,0.44498176,101480.0,101470.0,0.001]
[1750694946613,0.44498299,101480.0,101470.0,0.001]
[1750694947260,0.41388299,101480.0,101470.0,0.001]
[1750694948979,0.44568299,101480.0,101470.0,0.001]
[1750694949202,4.765734,101460.0,101430.0,0.359]
[1750694949418,0.403,101450.0,101420.0,0.08154]
[1750694949658,0.42124378,101450.0,101420.0,0.33935939]
[1750694949880,0.47423526,101450.0,101420.0,0.33935939]
[1750694950103,0.44303526,101450.0,101420.0,0.30695939]
[1750694950351,0.47363526,101450.0,101420.0,0.30695939]
[1750694950581,0.47363526,101450.0,101430.0,0.001]
[1750694950582,0.34,101440.0,101430.0,0.001]
[1750694950772,0.3728,101440.0,101430.0,0.00113838]
[1750694951053,0.3728,101440.0,101430.0,0.00013838]
[1750694952271,0.39104008,101440.0,101430.0,0.00013838]
[1750694952554,0.4055,101440.0,101430.0,0.00013838]
[1750694953190,0.423724,101440.0,101430.0,0.00213838]
[1750694953404,0.52502339,101440.0,101430.0,0.00413838]
[1750694953621,0.52502339,101440.0,101430.0,0.00213838]
[1750694953856,0.60630941,101440.0,101430.0,0.00013838]
[1750694954124,5.30904341,101440.0,101430.0,0.00013838]
[1750694954374,5.25654107,101440.0,101430.0,0.00113838]
[1750694954617,0.3728,101440.0,101430.0,0.00113838]
[1750694954832,0.3728,101440.0,101430.0,0.00013838]
[1750694955251,0.34,101440.0,101430.0,0.00013838]
[1750694955923,0.342,101440.0,101430.0,0.00013838]
[1750694956141,0.343,101440.0,101430.0,0.00013838]
[1750694956349,0.343,101440.0,101430.0,0.03323838]
[1750694956556,0.343,101440.0,101430.0,0.00013838]
[1750694957876,0.343,101440.0,101430.0,0.03083838]
[1750694958993,0.343,101440.0,101430.0,0.00013838]
[1750694961999,0.343,101440.0,101430.0,0.03293838]
[1750694962214,0.343,101440.0,101430.0,0.00013838]
[1750694962629,0.3734,101440.0,101430.0,0.00013838]
[1750694963112,0.343,101440.0,101430.0,0.00013838]
[1750694963573,0.343,101440.0,101430.0,0.03293838]
[1750694966020,0.4047,101440.0,101430.0,0.00013838]
[1750694966256,5.24504695,101440.0,101430.0,0.00013838]
[1750694966491,5.26322474,101440.0,101430.0,0.00013838]
[1750694966763,5.28650779,101440.0,101430.0,0.00013838]
[1750694969613,5.28650475,101440.0,101430.0,0.00013838]
[1750694970536,5.24919119,101440.0,101430.0,0.00013838]
[1750694971224,5.27890137,101440.0,101430.0,0.00013838]
[1750694972308,5.26072714,101440.0,101430.0,0.00013838]
[1750694972525,5.27890725,101440.0,101430.0,0.00013838]
[1750694972773,5.24919707,101440.0,101430.0,0.00013838]
[1750694973012,5.3272952,101440.0,101430.0,0.00013838]
[1750694973251,0.41496368,101440.0,101430.0,0.00013838]
[1750694973468,0.36118011,101440.0,101430.0,0.06323838]
[1750694973694,0.343,101440.0,101430.0,0.06323838]
[1750694975247,0.343,101440.0,101430.0,0.03093838]
[1750694975478,0.343,101440.0,101430.0,0.00013838]
[1750694975701,0.36125011,101440.0,101430.0,0.00013838]
[1750694976380,0.02125011,101440.0,101430.0,0.00013838]
[1750694977972,0.003,101440.0,101430.0,0.00013838]
[1750694978221,0.02125254,101440.0,101430.0,0.00013838]
[1750694978694,0.04461344,101440.0,101430.0,0.00013838]
[1750694979235,0.07501344,101440.0,101430.0,0.00013838]
[1750694979981,0.08251478,101440.0,101430.0,0.00013838]
[1750694980243,4.78524878,101440.0,101430.0,0.00013838]
[1750694980475,4.91634817,101440.0,101430.0,0.00013838]
[1750694980718,4.92547732,101440.0,101430.0,0.00013838]
[1750694980957,4.92548318,101440.0,101430.0,0.00013838]
[1750694981606,4.91798184,101440.0,101430.0,0.00013838]
[1750694982310,4.93252269,101440.0,101430.0,0.00013838]
[1750694982567,4.766734,101430.0,101420.0,0.0002]
[1750694982785,0.20591865,101430.0,101420.0,0.0002]
[1750694983228,0.17491865,101430.0,101420.0,0.0002]
[1750694983670,0.17491437,101430.0,101420.0,0.0002]
[1750694983900,0.20456637,101430.0,101420.0,0.0012]
[1750694984120,0.17491437,101430.0,101420.0,0.0012]
[1750694986541,0.59398482,101430.0,101420.0,0.0012]
[1750694986762,5.32583205,101430.0,101420.0,0.0012]
[1750694986993,5.33495606,101430.0,101420.0,0.0012]
[1750694987476,5.33495606,101430.0,101420.0,0.0002]
[1750694987937,5.33795606,101430.0,101420.0,0.0012]
[1750694988171,5.30512326,101430.0,101420.0,0.0012]
[1750694988415,5.30412326,101430.0,101420.0,0.0002]
[1750694989342,5.27674837,101430.0,101420.0,0.0002]
[1750694989585,5.30511248,101430.0,101420.0,0.0002]
[1750694991180,5.29599111,101430.0,101420.0,0.0002]
[1750694991399,5.3962905,101430.0,101420.0,0.0002]
[1750694991865,5.40541092,101430.0,101420.0,0.0002]
[1750694992385,5.30510963,101430.0,101420.0,0.0002]
[1750694993071,5.29598921,101430.0,101420.0,0.0002]
[1750694993291,5.26428921,101430.0,101420.0,0.0002]
[1750694993522,5.24604837,101430.0,101420.0,0.0002]
[1750694993770,5.26428928,101430.0,101420.0,0.0002]
[1750694993983,5.27341096,101430.0,101420.0,0.0002]
[1750694994663,0.51401443,101430.0,101420.0,0.0002]
[1750694994924,0.4849012,101430.0,101420.0,0.0318]
[1750694995401,0.4849012,101430.0,101420.0,0.0002]
[1750694995625,0.60147012,101430.0,101420.0,0.0002]
[1750694995856,0.5177012,101430.0,101420.0,0.0002]
[1750694996092,0.4849012,101430.0,101420.0,0.0002]
[1750694996530,0.48489299,101430.0,101420.0,0.0002]
[1750694998084,0.48489136,101430.0,101420.0,0.0002]
[1750694998286,0.56866706,101430.0,101420.0,0.0002]
[1750694998797,0.48489136,101430.0,101420.0,0.0002]
[1750694999227,5.22052536,101430.0,101420.0,0.0002]
[1750695001713,5.23506621,101430.0,101420.0,0.0002]
[1750695001958,5.26666621,101430.0,101420.0,0.0002]
[1750695002622,5.23506621,101430.0,101420.0,0.0002]
[1750695003048,5.28042568,101430.0,101420.0,0.0002]
[1750695003483,5.2621864,101430.0,101420.0,0.0002]
[1750695003701,5.28041978,101430.0,101420.0,0.0002]
[1750695004571,5.19708678,101430.0,101420.0,0.0002]
[1750695004776,5.15172731,101430.0,101420.0,0.0002]
[1750695005927,5.18262731,101430.0,101420.0,0.0002]
[1750695006162,5.19174377,101430.0,101420.0,0.0002]
[1750695006388,5.16083543,101430.0,101420.0,0.0002]
[1750695007023,5.16082973,101430.0,101420.0,0.0002]
[1750695007670,5.19048373,101430.0,101420.0,0.0002]
[1750695008100,5.29078312,101430.0,101420.0,0.0002]
[1750695008770,5.15758373,101430.0,101420.0,0.0002]
[1750695009204,5.15758517,101430.0,101420.0,0.0002]
[1750695009639,5.18868517,101430.0,101420.0,0.0002]
[1750695011704,5.15759079,101430.0,101420.0,0.0002]
[1750695012155,5.13024793,101430.0,101420.0,0.0329]
[1750695012378,5.15759407,101430.0,101420.0,0.0329]
[1750695012607,5.15759407,101430.0,101420.0,0.0002]
[1750695012845,5.042734,101420.0,101410.0,0.0306]
[1750695013072,0.38158345,101420.0,101410.0,0.0306]
[1750695013309,0.38158345,101420.0,101410.0,0.0304]
[1750695014636,0.38158978,101420.0,101410.0,0.0304]
[1750695015069,0.38159471,101420.0,101410.0,0.0304]
[1750695015284,0.38159471,101420.0,101410.0,0.0314]
[1750695015718,0.38159471,101420.0,101410.0,0.0627]
[1750695017452,0.04159471,101420.0,101410.0,0.0627]
[1750695020120,0.20074351,101420.0,101410.0,0.001]
[1750695020578,0.15643495,101420.0,101410.0,0.001]
[1750695020804,0.15643334,101420.0,101410.0,0.001]
[1750695021028,0.15643334,101420.0,101400.0,0.07723053]
[1750695021241,0.17114374,101420.0,101400.0,0.07723053]
[1750695021472,0.17414374,101420.0,101400.0,0.07723053]
[1750695021701,0.20444374,101420.0,101400.0,0.07723053]
[1750695021921,0.17314374,101420.0,101400.0,0.07723053]
[1750695022135,4.702734,101410.0,101400.0,0.07723053]
[1750695024197,0.0147104,101420.0,101400.0,0.17752992]
[1750695024457,0.37805314,101420.0,101410.0,0.0637]
[1750695024679,0.38158179,101420.0,101410.0,0.0637]
[1750695024901,0.39686183,101420.0,101410.0,0.0637]
[1750695025361,0.39886183,101420.0,101410.0,0.0637]
[1750695025596,0.39886183,101420.0,101410.0,0.0321]
[1750695025597,0.39986183,101420.0,101410.0,0.0321]
[1750695025827,0.39986183,101420.0,101400.0,0.07713053]
[1750695026061,0.40049229,101420.0,101400.0,0.07713053]
[1750695026292,0.39849302,101420.0,101400.0,0.07713053]
[1750695026522,4.702734,101410.0,101400.0,0.07713053]
[1750695026750,4.72607674,101410.0,101400.0,0.07713053]
[1750695026987,0.02334274,101410.0,101400.0,0.07713053]
[1750695027205,0.01824305,101410.0,101400.0,0.07713053]
[1750695027662,0.04158579,101410.0,101400.0,0.07713053]
[1750695028130,0.02334274,101410.0,101400.0,0.07713053]
[1750695028370,0.01824275,101410.0,101400.0,0.07813053]
[1750695028594,0.04789875,101410.0,101400.0,0.07813053]
[1750695028814,0.07124149,101410.0,101400.0,0.07813053]
[1750695029042,0.07124152,101410.0,101400.0,0.07813053]
[1750695031075,4.82973975,101410.0,101400.0,0.01463053]
[1750695031537,4.77397552,101410.0,101400.0,0.01463053]
[1750695031782,4.54674,101410.0,101400.0,0.01463053]
[1750695033194,4.54674,101410.0,101400.0,0.04743053]
[1750695033434,4.54674,101410.0,101400.0,0.01463053]
[1750695036207,4.54674,101410.0,101400.0,0.07883053]
[1750695038679,4.54674,101410.0,101400.0,0.04723053]
[1750695038901,4.70963939,101410.0,101400.0,0.01463053]
[1750695040900,4.71163939,101410.0,101400.0,0.01363053]
[1750695041332,4.74229839,101410.0,101400.0,0.01363053]
[1750695043121,4.71039839,101410.0,101400.0,0.01363053]
[1750695043815,4.75200343,101410.0,101400.0,0.01363053]
[1750695044268,4.85230282,101410.0,101400.0,0.01363053]
[1750695044486,4.85454382,101410.0,101400.0,0.01363053]
[1750695045804,5.20908467,101410.0,101400.0,0.01363053]
[1750695046012,5.17718467,101410.0,101400.0,0.01363053]
[1750695046241,5.20908467,101410.0,101400.0,0.00963053]
[1750695046480,5.20908467,101410.0,101380.0,0.0018897]
[1750695046481,4.88674,101390.0,101380.0,0.0018897]
[1750695046695,4.91008366,101390.0,101380.0,0.0018897]
[1750695046916,4.92832726,101390.0,101380.0,0.0660897]
[1750695047845,4.92846562,101390.0,101380.0,0.0660897]
[1750695048285,4.93545301,101390.0,101380.0,0.0028897]
[1750695048533,4.93545301,101390.0,101360.0,0.00481744]
[1750695048534,5.38674,101370.0,101360.0,0.00481744]
[1750695048743,4.88674,101370.0,101360.0,0.06901744]
[1750695048962,4.91006355,101370.0,101360.0,0.06901744]
[1750695049396,4.92829243,101370.0,101360.0,0.06901744]
[1750695049623,4.90496888,101370.0,101360.0,0.06901744]
[1750695049851,0.34,101370.0,101360.0,0.06901744]
[1750695050116,5.11206,101380.0,101370.0,0.0639]
[1750695050354,0.38152252,101380.0,101370.0,0.0629]
[1750695050590,0.35822236,101380.0,101370.0,0.0629]
[1750695050824,0.35822236,101380.0,101370.0,0.0317]
[1750695051070,0.35822236,101380.0,101360.0,0.03851744]
[1750695051306,4.54674,101370.0,101360.0,0.00481744]
[1750695051546,4.54674,101370.0,101360.0,0.03651744]
[1750695053358,4.54674,101370.0,101360.0,0.06971744]
[1750695054095,0.51716,101380.0,101360.0,0.07071744]
[1750695054320,4.333539,101370.0,101360.0,0.06971744]
[1750695054757,0.70649341,101380.0,101360.0,0.00581744]
[1750695054973,4.333539,101370.0,101360.0,0.06971744]
[1750695055841,0.59467402,101380.0,101370.0,0.0317]
[1750695056058,0.59467402,101380.0,101370.0,0.0639]
[1750695056286,0.42051402,101380.0,101370.0,0.0639]
[1750695056750,0.36943402,101380.0,101370.0,0.0639]
[1750695056957,0.36943402,101380.0,101370.0,0.0649]
[1750695057169,0.37043402,101380.0,101370.0,0.0649]
[1750695058036,0.37243402,101380.0,101370.0,0.0649]
[1750695058256,0.37043402,101380.0,101370.0,0.0649]
[1750695058689,0.37243402,101380.0,101370.0,0.0649]
[1750695060616,0.343,101380.0,101370.0,0.0649]
[1750695062772,0.003,101380.0,101370.0,0.0649]
[1750695066599,0.00033016,101380.0,101370.0,0.0649]
[1750695067700,0.50033016,101380.0,101370.0,0.001]
[1750695067907,0.50033016,101380.0,101370.0,0.0334]
[1750695069006,0.50033016,101380.0,101370.0,0.0657]
[1750695073331,0.50033016,101380.0,101370.0,0.0334]
[1750695073549,0.50033016,101380.0,101370.0,0.001]
[1750695073766,0.52367467,101380.0,101370.0,0.001]
[1750695074836,0.55427467,101380.0,101370.0,0.001]
[1750695075058,4.83753322,101380.0,101370.0,0.001]
[1750695075471,4.77917283,101380.0,101370.0,0.001]
[1750695075682,4.80836369,101380.0,101370.0,0.001]
[1750695077015,5.01271813,101380.0,101370.0,0.001]
[1750695077683,5.01271299,101380.0,101370.0,0.001]
[1750695078752,4.77547223,101380.0,101370.0,0.001]
[1750695078990,4.74628146,101380.0,101370.0,0.001]
[1750695080264,4.74628146,101380.0,101370.0,0.0323]
[1750695082703,4.57120146,101380.0,101370.0,0.0323]
[1750695082927,4.57120146,101380.0,101370.0,0.001]
[1750695083622,4.571199,101380.0,101370.0,0.001]
[1750695083830,4.571199,101380.0,101370.0,0.0313]
[1750695085192,4.600866,101380.0,101370.0,0.0313]
[1750695085845,4.60086774,101380.0,101370.0,0.0313]
[1750695086952,4.60086774,101380.0,101370.0,0.063]
[1750695087852,4.183673,101380.0,101370.0,0.0327]
[1750695088071,4.183673,101380.0,101370.0,0.0656]
[1750695093638,0.36932922,101390.0,101380.0,0.0635]
[1750695093871,0.02351743,101390.0,101380.0,0.0635]
[1750695094775,0.00013836,101390.0,101380.0,0.0635]
[1750695094986,0.00313836,101390.0,101380.0,0.0645]
[1750695096075,0.00013836,101390.0,101380.0,0.0635]
[1750695096266,0.00213836,101390.0,101380.0,0.0635]
[1750695096726,0.00513836,101390.0,101380.0,0.0655]
[1750695098026,0.00213836,101390.0,101380.0,0.0645]
[1750695098238,0.00313836,101390.0,101380.0,0.0645]
[1750695107373,0.00313836,101390.0,101380.0,0.034]
[1750695107598,0.00313836,101390.0,101380.0,0.001]
[1750695107821,0.0265131,101390.0,101380.0,0.001]
[1750695108301,0.0265131,101390.0,101380.0,0.0323]
[1750695108731,0.0235131,101390.0,101380.0,0.0313]
[1750695108952,0.0265131,101390.0,101380.0,0.0323]
[1750695109184,0.0285131,101390.0,101380.0,0.0323]
[1750695114859,0.0285131,101390.0,101380.0,0.0652]
[1750695116761,0.0285131,101390.0,101380.0,0.16549939]
[1750695116962,0.00513836,101390.0,101380.0,0.16549939]
[1750695123941,0.00513836,101390.0,101380.0,0.001]
[1750695124176,0.34513836,101390.0,101380.0,0.001]
[1750695124396,0.368564,101390.0,101380.0,0.001]
[1750695124855,0.38686472,101390.0,101380.0,0.001]
[1750695125096,0.368564,101390.0,101380.0,0.001]
[1750695125530,0.368564,101390.0,101380.0,0.0339]
[1750695125996,0.38686824,101390.0,101380.0,0.0339]
[1750695126210,0.38686824,101390.0,101380.0,0.001]
[1750695126633,0.368564,101390.0,101380.0,0.001]
[1750695127078,0.433364,101390.0,101380.0,0.001]
[1750695127491,0.41987226,101390.0,101380.0,0.001]
[1750695128114,0.38687226,101390.0,101380.0,0.001]
[1750695129192,0.38687226,101390.0,101380.0,0.0324]
[1750695130976,0.38687226,101390.0,101360.0,0.03671744]
[1750695130977,4.183673,101370.0,101360.0,0.03671744]
[1750695131236,0.34,101370.0,101360.0,0.00481744]
[1750695131444,0.36343063,101370.0,101360.0,0.00481744]
[1750695131657,0.34,101370.0,101360.0,0.00481744]
[1750695132107,0.34,101370.0,101360.0,0.00781744]
[1750695132313,0.36342143,101370.0,101360.0,0.00781744]
[1750695133148,0.341,101370.0,101360.0,0.03931744]
[1750695133999,0.341,101370.0,101360.0,0.07171744]
[1750695135073,0.341,101370.0,101360.0,0.17201683]
[1750695138029,0.001,101370.0,101360.0,0.17201683]
[1750695139528,0.001,101370.0,101360.0,0.56362467]
[1750695139769,0.001,101370.0,101360.0,0.5734901]
[1750695140205,0.001,101370.0,101360.0,0.58335524]
[1750695141309,0.001,101370.0,101360.0,0.59789609]
[1750695141511,0.001,101370.0,101360.0,0.64773609]
[1750695142257,0.001,101370.0,101360.0,1.14219126]
[1750695142443,0.00013836,101390.0,101380.0,0.29196801]
[1750695142654,0.06512004,101420.0,101390.0,0.20712061]
[1750695142857,0.07827406,101410.0,101400.0,0.33991939]
[1750695143501,0.07827406,101410.0,101400.0,0.16539939]
[1750695143713,0.14297406,101410.0,101390.0,0.032]
[1750695143919,0.14297406,101410.0,101390.0,0.13229939]
[1750695144136,0.01528004,101420.0,101410.0,0.032]
[1750695144350,0.01528004,101420.0,101410.0,0.13229939]
[1750695144556,0.5001,101430.0,101410.0,0.13129939]
[1750695144772,0.3401,101420.0,101410.0,0.32851859]
[1750695144985,0.3401,101420.0,101410.0,0.34824002]
[1750695145197,0.0001,101420.0,101410.0,0.34624002]
[1750695145402,0.0001,101420.0,101410.0,0.12929939]
[1750695146306,0.0011,101420.0,101410.0,0.12929939]
[1750695146508,0.0011,101420.0,101410.0,0.10029939]
[1750695146719,0.0011,101420.0,101410.0,0.13339939]
[1750695147143,0.01454005,101420.0,101410.0,0.13339939]
[1750695147368,0.0011,101420.0,101410.0,0.13339939]
[1750695148300,0.0011,101420.0,101410.0,0.10029939]
[1750695148525,0.5011,101420.0,101400.0,0.23824]
[1750695148809,0.5011,101420.0,101400.0,0.33853939]
[1750695149309,0.5001,101420.0,101400.0,0.33853939]
[1750695149553,0.5001,101420.0,101400.0,0.16409939]
[1750695149996,0.5613,101420.0,101400.0,0.10129939]
[1750695150228,0.57454608,101420.0,101400.0,0.10129939]
[1750695150656,0.41454608,101420.0,101400.0,0.10129939]
[1750695150861,0.41454608,101420.0,101400.0,0.001]
[1750695151899,4.523673,101410.0,101400.0,0.001]
[1750695152106,0.34,101410.0,101400.0,0.001]
[1750695152785,0.34,101410.0,101390.0,0.033]
[1750695152989,0.34,101400.0,101380.0,0.20536]
[1750695153204,0.34,101400.0,101380.0,0.33755939]
[1750695153874,0.0632,101400.0,101380.0,0.17436]
[1750695154296,0.0632,101400.0,101380.0,0.18036]
[1750695154728,0.40298608,101420.0,101380.0,0.006]
[1750695154729,4.585273,101390.0,101380.0,0.006]
[1750695154971,0.4016,101380.0,101360.0,0.00481744]
[1750695155491,4.183673,101370.0,101360.0,0.00481744]
[1750695156169,4.18371914,101370.0,101360.0,0.00481744]
[1750695156623,4.18371914,101370.0,101360.0,0.00581744]
[1750695156837,4.58571914,101370.0,101360.0,0.001]
[1750695157705,0.37204614,101370.0,101360.0,0.001]
[1750695157914,0.34204614,101370.0,101360.0,0.001]
[1750695158655,0.34204614,101370.0,101350.0,0.0318]
[1750695158913,0.34204614,101370.0,101350.0,0.13209939]
[1750695159132,0.34304614,101370.0,101360.0,0.001]
[1750695159583,0.34104614,101370.0,101360.0,0.001]
[1750695159800,0.34004614,101370.0,101350.0,0.10049939]
[1750695160030,0.35004614,101370.0,101350.0,0.10249939]
[1750695160246,0.34104614,101370.0,101350.0,0.10149939]
[1750695160479,0.34104614,101370.0,101350.0,0.0012]
[1750695160688,0.41054614,101370.0,101360.0,0.001]
[1750695160912,0.37994614,101370.0,101350.0,0.0002]
[1750695161141,0.34904614,101370.0,101350.0,0.0627]
[1750695161413,0.34,101360.0,101350.0,0.16299939]
[1750695162117,0.34,101360.0,101350.0,0.16399939]
[1750695162328,0.00704614,101370.0,101350.0,0.10049939]
[1750695162540,0.00604614,101370.0,101360.0,0.0322]
[1750695162753,0.003,101360.0,101350.0,0.16369939]
[1750695162981,0.003,101360.0,101350.0,0.16469939]
[1750695163627,4.614e-05,101370.0,101350.0,0.16369939]
[1750695163834,0.00604614,101370.0,101360.0,0.001]
[1750695164944,0.00604614,101370.0,101350.0,0.16269939]
[1750695165197,4.614e-05,101370.0,101350.0,0.16269939]
[1750695165451,0.003,101360.0,101350.0,0.16369939]
[1750695165686,0.003,101360.0,101350.0,0.16269939]
[1750695166141,0.00604614,101370.0,101350.0,0.16269939]
[1750695166383,0.00704614,101370.0,101350.0,0.16369939]
[1750695166615,0.01004614,101370.0,101350.0,0.16469939]
[1750695166838,0.00304614,101370.0,101350.0,0.16269939]
[1750695167037,0.002,101360.0,101350.0,0.16569939]
[1750695167542,0.0012,101360.0,101350.0,0.16569939]
[1750695168244,0.0012,101360.0,101350.0,0.17556618]
[1750695168719,0.0002,101360.0,101350.0,0.39263514]
[1750695168952,4.614e-05,101370.0,101360.0,0.0655]
[1750695169189,0.00304614,101370.0,101360.0,0.16579939]
[1750695169419,0.00304614,101370.0,101360.0,0.39271217]
[1750695169654,0.00304614,101370.0,101360.0,0.39171217]
[1750695169881,4.614e-05,101370.0,101360.0,0.39171217]
[1750695170123,4.614e-05,101370.0,101360.0,0.17366511]
[1750695170371,0.00304614,101370.0,101360.0,0.38184742]
[1750695170836,0.00304614,101370.0,101360.0,0.40157838]
[1750695171046,0.00304614,101370.0,101360.0,0.38284742]
[1750695171269,0.00304614,101370.0,101360.0,0.16579939]
[1750695171744,4.614e-05,101370.0,101360.0,0.16479939]
[1750695171969,4.614e-05,101370.0,101360.0,0.56692723]
[1750695172185,4.614e-05,101370.0,101360.0,0.5856577]
[1750695172666,0.00104614,101370.0,101360.0,0.5886578]
[1750695172912,0.00104614,101370.0,101360.0,0.57879266]
[1750695173130,0.00104614,101370.0,101360.0,0.59852313]
[1750695173561,0.00104614,101370.0,101360.0,0.58865799]
[1750695173776,0.00104614,101370.0,101360.0,0.59852313]
[1750695175572,0.00104614,101370.0,101360.0,0.61306398]
[1750695175819,0.00104614,101370.0,101360.0,0.66306398]
[1750695176264,0.00104614,101370.0,101360.0,0.71306398]
[1750695176977,0.00104614,101370.0,101360.0,1.10851915]
[1750695177208,0.01334608,101420.0,101400.0,0.28185482]
[1750695177450,0.01334608,101420.0,101410.0,0.31705939]
[1750695177688,0.35334608,101420.0,101410.0,0.31705939]
[1750695178208,0.35334608,101420.0,101410.0,0.31605939]
[1750695178460,0.01334608,101420.0,101410.0,0.31605939]
[1750695178695,0.35334608,101420.0,101410.0,0.28525939]
[1750695178937,0.35834608,101420.0,101410.0,0.28425939]
[1750695179662,0.01934608,101420.0,101410.0,0.28425939]
[1750695180115,0.01934608,101420.0,101410.0,0.28589939]
[1750695181337,0.01934608,101420.0,101410.0,0.001]
[1750695181593,0.01934608,101420.0,101400.0,0.18444]
[1750695181594,0.34,101410.0,101400.0,0.18444]
[1750695181849,0.4017,101410.0,101390.0,0.18444]
[1750695182079,0.4017,101410.0,101380.0,0.13209556]
[1750695182080,0.0309,101400.0,101380.0,0.13209556]
[1750695182316,0.0309,101400.0,101380.0,0.23239495]
[1750695182584,0.0309,101400.0,101380.0,0.1848]
[1750695182585,0.4012,101400.0,101380.0,0.1848]
[1750695182818,0.41944915,101400.0,101380.0,0.18472]
[1750695183040,0.41944915,101400.0,101370.0,0.24048]
[1750695183262,0.41944915,101400.0,101370.0,0.34091775]
[1750695183722,0.34,101380.0,101370.0,0.34091775]
[1750695184169,0.34,101380.0,101370.0,0.10043775]
[1750695184892,0.4042,101390.0,101380.0,0.001]
[1750695185551,0.4042,101390.0,101370.0,0.00313836]
[1750695185770,0.42245402,101390.0,101370.0,0.00013836]
[1750695186009,0.08245402,101390.0,101370.0,0.00013836]
[1750695186234,0.0652,101390.0,101380.0,0.003]
[1750695186672,0.0642,101390.0,101370.0,0.00013836]
[1750695186907,0.34,101370.0,101350.0,0.0002]
[1750695187122,0.4042,101380.0,101350.0,0.10096241]
[1750695187342,0.42245504,101380.0,101350.0,0.13216241]
[1750695187777,0.38925504,101380.0,101350.0,0.16266241]
[1750695187999,0.38925504,101380.0,101370.0,0.002]
[1750695188228,0.38925662,101380.0,101350.0,0.16266241]
[1750695188440,0.42175662,101380.0,101350.0,0.16266241]
[1750695188654,0.42275662,101380.0,101350.0,0.16266241]
[1750695189298,0.52405601,101380.0,101350.0,0.00066302]
[1750695189541,0.45120672,101380.0,101350.0,0.16446241]
[1750695189968,0.45120672,101380.0,101350.0,0.16646241]
[1750695190895,0.47658167,101380.0,101350.0,0.16646241]
[1750695191127,0.47658167,101380.0,101350.0,0.3608892]
[1750695191309,0.4765828,101380.0,101350.0,0.35102241]
[1750695192676,0.4765828,101380.0,101350.0,0.16646241]
[1750695192910,0.45832618,101380.0,101350.0,0.35078241]
[1750695193126,0.5639501,101380.0,101350.0,0.35078241]
[1750695194258,0.5639501,101380.0,101350.0,0.34895167]
[1750695194467,0.5639501,101380.0,101350.0,0.55615279]
[1750695194711,0.5639501,101380.0,101350.0,0.56601929]
[1750695194981,0.5314501,101380.0,101350.0,0.35881846]
[1750695195227,0.2765896,101390.0,101350.0,0.56601953]
[1750695195479,0.0301,101380.0,101350.0,0.34895167]
[1750695195721,0.5301,101380.0,101350.0,0.34895167]
[1750695195962,0.5616,101380.0,101350.0,0.31745167]
[1750695196179,0.0301,101370.0,101340.0,0.1838]
[1750695196399,0.0301,101370.0,101340.0,0.50118965]
[1750695196622,0.0301,101370.0,101340.0,0.52092412]
[1750695196861,0.0301,101370.0,101340.0,0.33712421]
[1750695197101,0.0301,101370.0,101340.0,0.52076421]
[1750695197386,0.3701,101370.0,101340.0,0.52076421]
[1750695197614,0.3701,101370.0,101340.0,0.52076363]
[1750695198172,0.3701,101370.0,101340.0,0.53063062]
[1750695198436,0.3701,101370.0,101340.0,0.51289654]
[1750695198671,5.05,101360.0,101340.0,0.53263062]
[1750695198903,5.05,101360.0,101340.0,0.34312315]
[1750695199130,0.34,101350.0,101340.0,0.10629939]
[1750695199359,0.34,101350.0,101340.0,0.11616716]
[1750695199581,0.34,101350.0,101340.0,0.11416716]
[1750695200077,0.34,101350.0,101340.0,0.33725744]